bitfinex/quotes_ETHUSD_20250726
["timestamp","ask_amount","ask_price","bid_price","bid_amount"]
[1753507845486,9.76459681,3751.9,3751.8,1e-08]
[1753507845663,9.90513801,3751.9,3751.8,1e-08]
[1753507846302,10.32313801,3751.9,3751.8,1e-08]
[1753507847393,9.90513801,3751.9,3751.8,1e-08]
[1753507847907,6.98233801,3751.9,3751.8,1e-08]
[1753507848071,5.61739553,3751.9,3751.8,0.88450001]
[1753507848272,5.22791623,3751.9,3751.8,0.88450001]
[1753507848775,8.22791623,3751.9,3751.8,0.88450001]
[1753507849704,8.22791623,3751.9,3751.8,1e-08]
[1753507850401,8.47688746,3751.9,3751.8,1e-08]
[1753507850711,8.22791623,3751.9,3751.8,0.45690001]
[1753507850870,8.4768862,3751.9,3751.8,0.45690001]
[1753507851071,8.47691986,3751.9,3751.8,1e-08]
[1753507853178,8.47691986,3751.9,3751.8,0.45690001]
[1753507853571,8.6175231,3751.9,3751.8,0.45690001]
[1753507853807,8.47691986,3751.9,3751.8,0.45690001]
[1753507855212,6.18855806,3751.9,3751.8,0.45690001]
[1753507855503,8.47591986,3751.9,3751.8,0.88450001]
[1753507857014,8.47591986,3751.9,3751.8,1e-08]
[1753507857221,8.61659513,3751.9,3751.8,1e-08]
[1753507860017,8.61559513,3751.9,3751.8,0.88450001]
[1753507860728,8.22591623,3751.9,3751.8,0.88450001]
[1753507860886,5.79891623,3751.9,3751.8,0.88450001]
[1753507861082,8.22591623,3751.9,3751.8,0.88450001]
[1753507862020,5.79891623,3751.9,3751.8,0.88450001]
[1753507862341,3.1336,3751.9,3751.8,0.88450001]
[1753507862529,2.5606,3751.9,3751.8,0.88450001]
[1753507862704,3.1336,3751.9,3751.8,0.88450001]
[1753507864407,5.79891623,3751.9,3751.8,0.88450001]
[1753507873352,5.80091623,3751.9,3751.8,0.88450001]
[1753507878145,3.1356,3751.9,3751.8,0.88450001]
[1753507879022,5.80091623,3751.9,3751.8,0.88450001]
[1753507883351,7.68812642,3751.9,3751.8,1e-08]
[1753507883557,8.18222642,3751.9,3751.8,1e-08]
[1753507883926,6.89012642,3751.9,3751.8,1e-08]
[1753507885942,6.89012642,3751.9,3751.8,0.48530001]
[1753507886343,3.1356,3751.9,3751.8,0.94110001]
[1753507886960,0.1356,3751.9,3751.8,0.94110001]
[1753507887762,2.80091623,3751.9,3751.8,0.94110001]
[1753507888347,5.80091623,3751.9,3751.8,0.94110001]
[1753507888646,5.80091623,3751.9,3751.8,0.48530001]
[1753507891568,5.80091623,3751.9,3751.8,1e-08]
[1753507892472,5.80091623,3751.9,3751.8,0.94110001]
[1753507893073,3.1356,3751.9,3751.8,0.94110001]
[1753507897676,5.80091623,3751.9,3751.8,0.94110001]
[1753507897881,5.80091623,3751.9,3751.8,1e-08]
[1753507899160,3.1356,3751.9,3751.8,0.94110001]
[1753507900066,3.38501661,3751.9,3751.8,0.94110001]
[1753507902806,0.38501661,3751.9,3751.8,0.94110001]
[1753507903095,0.002,3751.9,3751.8,1.74350001]
[1753507905858,0.002,3751.9,3751.8,4.40888729]
[1753507907568,0.002,3751.9,3751.8,1.74350001]
[1753507910091,0.002,3751.9,3751.8,4.40888729]
[1753507910692,0.002,3751.9,3751.8,5.12978762]
[1753507910889,0.002,3751.9,3751.8,7.55378762]
[1753507919313,0.002,3751.9,3751.8,4.88840034]
[1753507921928,0.002,3751.9,3751.8,3.22640001]
[1753507922230,0.002,3751.9,3751.8,2.42400001]
[1753507922402,0.002,3751.9,3751.8,3.37330001]
[1753507923824,0.4815,3751.9,3751.8,2.42400001]
[1753507923988,3.99333604,3751.9,3751.8,2.42400001]
[1753507924188,0.84851981,3751.9,3751.8,2.42400001]
[1753507925127,0.002,3751.9,3751.8,1e-08]
[1753507925288,0.002,3751.9,3751.8,0.94930001]
[1753507927901,0.002,3751.9,3751.8,0.48580001]
[1753507929029,0.002,3751.9,3751.8,0.94930001]
[1753507929721,0.002,3751.9,3751.8,3.61468729]
[1753507929895,0.002,3751.9,3751.8,4.70207423]
[1753507931628,0.002,3751.9,3751.8,2.03668695]
[1753507931827,0.002,3751.9,3751.8,1.08290001]
[1753507933814,0.002,3751.9,3751.8,0.13360001]
[1753507935297,0.4815,3751.9,3751.8,0.13360001]
[1753507935498,4.36911623,3751.9,3751.8,1e-08]
[1753507935702,12.29294849,3751.9,3751.8,1e-08]
[1753507935913,12.42654849,3751.9,3751.8,1e-08]
[1753507937231,8.20635044,3751.9,3751.8,1e-08]
[1753507939536,7.30885044,3751.9,3751.8,1e-08]
[1753507939739,7.78795044,3751.9,3751.8,1e-08]
[1753507948217,7.30885044,3751.9,3751.8,1e-08]
[1753507951443,10.62895044,3751.9,3751.8,1e-08]
[1753507951649,14.84914849,3751.9,3751.8,1e-08]
[1753507953460,15.23902394,3751.9,3751.8,1e-08]
[1753507955352,18.04602394,3751.9,3751.8,1e-08]
[1753507955522,15.23902394,3751.9,3751.8,1e-08]
[1753507956056,11.91892394,3751.9,3751.8,1e-08]
[1753507956250,10.12172589,3751.9,3751.8,1e-08]
[1753507956448,7.69872589,3751.9,3751.8,1e-08]
[1753507956629,7.69872589,3751.9,3751.8,0.92530001]
[1753507956630,0.52547545,3751.9,3751.8,0.92530001]
[1753507956954,3.52547545,3751.9,3751.8,0.92530001]
[1753507957155,3.38480382,3751.9,3751.8,0.92530001]
[1753507957363,3.1356,3751.9,3751.8,0.92530001]
[1753507957654,0.1356,3751.9,3751.8,0.92530001]
[1753507957844,0.002,3751.9,3751.8,1.09804001]
[1753507959249,0.002,3751.9,3751.8,0.92530001]
[1753507970381,0.002,3751.9,3751.8,1e-08]
[1753507970580,8.87291623,3751.9,3751.8,1e-08]
[1753507970767,9.75331623,3751.9,3751.8,1e-08]
[1753507970972,9.33531623,3751.9,3751.8,1e-08]
[1753507972694,9.75331623,3751.9,3751.8,1e-08]
[1753507973055,9.33531623,3751.9,3751.8,1e-08]
[1753507973255,9.75331623,3751.9,3751.8,1e-08]
[1753507973456,7.16133738,3751.9,3751.8,1e-08]
[1753507973655,9.58433738,3751.9,3751.8,1e-08]
[1753507977497,10.00233738,3751.9,3751.8,1e-08]
[1753507978795,9.12193738,3751.9,3751.8,1e-08]
[1753507978962,10.14290825,3751.9,3751.8,1e-08]
[1753507979497,6.83950825,3751.9,3751.8,1e-08]
[1753507979665,10.14290825,3751.9,3751.8,1e-08]
[1753507980698,10.27650825,3751.9,3751.8,1e-08]
[1753507981117,10.42587464,3751.9,3751.8,1e-08]
[1753507981305,2.66552937,3751.6,3751.5,1e-08]
[1753507981615,13.49484857,3751.6,3751.5,1e-08]
[1753507981781,14.05341944,3751.6,3751.5,1e-08]
[1753507981979,14.51581944,3751.6,3751.5,1e-08]
[1753507983302,2.66567148,3751.4,3751.3,1e-08]
[1753507983487,9.4018635,3751.4,3751.3,1e-08]
[1753507983889,10.2822635,3751.4,3751.3,1e-08]
[1753507985518,9.8642635,3751.4,3751.3,1e-08]
[1753507986425,9.72369263,3751.4,3751.3,1e-08]
[1753507986633,9.26129263,3751.4,3751.3,1e-08]
[1753507988518,6.83829263,3751.4,3751.3,0.90930001]
[1753507988860,2.79927148,3751.4,3751.3,0.90930001]
[1753507989351,0.1336,3751.4,3751.3,0.90930001]
[1753507989811,0.1336,3751.4,3751.3,1.71150001]
[1753507990431,3.1336,3751.4,3751.3,1.71150001]
[1753507991137,5.79927148,3751.4,3751.3,1.71150001]
[1753507991709,5.79927148,3751.4,3751.3,0.90930001]
[1753507996231,5.79927148,3751.4,3751.3,1e-08]
[1753507996432,6.64575237,3751.4,3751.3,1e-08]
[1753507996944,6.64575237,3751.4,3751.3,0.45500001]
[1753507997310,6.64575237,3751.4,3751.3,0.90930001]
[1753508001955,6.89478784,3751.4,3751.3,0.90930001]
[1753508002451,6.64575237,3751.4,3751.3,0.90930001]
[1753508003456,6.64575237,3751.4,3751.3,1e-08]
[1753508004050,6.64575237,3751.4,3751.3,0.92240001]
[1753508004357,6.64775237,3751.4,3751.3,0.92240001]
[1753508009458,0.1356,3751.4,3751.3,0.92240001]
[1753508009640,0.1356,3751.4,3751.3,1.72020001]
[1753508009840,3.1356,3751.4,3751.3,1.72020001]
[1753508011124,5.80127148,3751.4,3751.3,1.72020001]
[1753508011331,5.80127148,3751.4,3751.3,0.92240001]
[1753508013065,3.1356,3751.4,3751.3,0.92240001]
[1753508014475,5.80127148,3751.4,3751.3,0.92240001]
[1753508015269,5.80127148,3751.4,3751.3,0.49030001]
[1753508017268,6.64795208,3751.4,3751.3,1e-08]
[1753508018270,6.64795208,3751.4,3751.3,0.49030001]
[1753508021943,6.64795208,3751.4,3751.3,1e-08]
[1753508022270,7.13395208,3751.4,3751.3,1e-08]
[1753508022475,6.64795208,3751.4,3751.3,1e-08]
[1753508023039,6.64795208,3751.4,3751.3,0.92240001]
[1753508029894,0.1356,3751.4,3751.3,0.45680001]
[1753508030043,0.002,3751.4,3751.3,0.93290001]
[1753508031882,3.002,3751.4,3751.3,0.93290001]
[1753508033049,0.002,3751.4,3751.3,0.93290001]
[1753508033251,0.002,3751.4,3751.3,4.40164255]
[1753508033466,0.002,3751.4,3751.3,7.6650945]
[1753508037697,0.002,3751.4,3751.3,8.2150945]
[1753508040400,0.002,3751.4,3751.3,5.7920945]
[1753508040702,0.002,3751.4,3751.3,4.29150001]
[1753508040873,0.002,3751.4,3751.3,6.95724255]
[1753508042804,0.002,3751.4,3751.3,3.60234255]
[1753508042987,0.002,3751.4,3751.3,6.95724255]
[1753508043168,0.002,3751.4,3751.3,4.29150001]
[1753508043562,0.002,3751.4,3751.3,6.95724255]
[1753508043767,0.002,3751.4,3751.3,7.91966051]
[1753508046012,0.002,3751.4,3751.3,4.18741797]
[1753508046211,0.002,3751.4,3751.3,3.22500001]
[1753508047814,0.002,3751.4,3751.3,3.70110001]
[1753508048318,0.002,3751.4,3751.3,2.89810001]
[1753508051945,0.002,3751.4,3751.3,3.35490001]
[1753508055735,0.002,3751.4,3751.3,0.47610001]
[1753508055897,2.66767148,3751.4,3751.3,2.42200001]
[1753508056094,0.002,3751.4,3751.3,2.42200001]
[1753508057747,0.002,3751.4,3751.3,1e-08]
[1753508058029,0.002,3751.4,3751.3,2.92040001]
[1753508058399,0.002,3751.4,3751.3,1e-08]
[1753508058597,0.002,3751.4,3751.3,2.42200001]
[1753508063408,3.27427148,3751.4,3751.3,2.42200001]
[1753508063644,3.81640193,3751.4,3751.3,2.42200001]
[1753508067339,3.81640193,3751.4,3751.3,1e-08]
[1753508074652,2.80127148,3751.4,3751.3,0.49840001]
[1753508079354,0.1356,3751.4,3751.3,1e-08]
[1753508080520,0.1356,3751.4,3751.3,0.49840001]
[1753508081626,0.1356,3751.4,3751.3,0.94470001]
[1753508092243,0.1356,3751.4,3751.3,3.36670001]
[1753508100767,1.18601382,3751.4,3751.3,2.42100001]
[1753508100954,6.57157148,3751.4,3751.3,1e-08]
[1753508101270,7.03227148,3751.4,3751.3,1e-08]
[1753508101667,6.57157148,3751.4,3751.3,1e-08]
[1753508104072,5.80127148,3751.4,3751.3,1e-08]
[1753508105972,3.002,3751.4,3751.3,0.94510001]
[1753508108180,3.002,3751.4,3751.3,3.36610001]
[1753508111273,0.002,3751.4,3751.3,4.28430001]
[1753508111574,0.002,3751.4,3751.3,6.95004255]
[1753508117812,0.002,3751.4,3751.3,7.50004255]
[1753508127877,0.002,3751.4,3751.3,4.13394255]
[1753508128082,0.002,3751.4,3751.3,6.00394255]
[1753508128407,0.002,3751.4,3751.3,6.87102448]
[1753508128707,0.002,3751.4,3751.3,7.79632448]
[1753508131705,0.002,3751.9,3751.3,7.79632448]
[1753508131706,0.002,3751.9,3751.8,3.45468728]
[1753508131911,0.002,3751.9,3751.8,12.0134473]
[1753508132090,0.002,3751.9,3751.8,11.37998602]
[1753508132894,0.002,3751.9,3751.8,8.40147987]
[1753508133810,0.002,3751.9,3751.8,8.95147987]
[1753508142791,0.002,3751.9,3751.8,6.53147987]
[1753508142997,0.002,3751.9,3751.8,8.95147987]
[1753508143517,0.002,3751.9,3751.8,8.02517987]
[1753508143718,0.002,3751.9,3751.8,8.95047987]
[1753508148128,0.002,3751.9,3751.8,8.02517987]
[1753508148934,0.002,3751.9,3751.8,8.96157987]
[1753508151297,0.002,3751.9,3751.8,13.17776517]
[1753508153708,0.002,3751.9,3751.8,16.17776517]
[1753508154515,1e-08,3751.9,3751.8,16.17776517]
[1753508156931,1e-08,3752.2,3752.1,3.21517416]
[1753508157130,1e-08,3752.2,3752.1,8.55061631]
[1753508157311,1e-08,3752.2,3752.1,8.65756457]
[1753508157512,1e-08,3752.2,3752.1,9.59396457]
[1753508157868,1e-08,3752.2,3752.1,9.79848584]
[1753508158443,1e-08,3752.7,3752.6,3.98551905]
[1753508158746,1e-08,3752.7,3752.6,14.01925626]
[1753508158918,1e-08,3752.7,3752.6,15.08925626]
[1753508163059,1e-08,3752.7,3752.6,12.67025626]
[1753508163221,1e-08,3752.7,3752.6,15.08925626]
[1753508165170,1e-08,3752.7,3752.6,14.95565626]
[1753508172149,1e-08,3752.7,3752.6,18.79365626]
[1753508173142,0.002,3753.3,3753.2,7.43057835]
[1753508173342,0.002,3753.3,3753.2,6.37545089]
[1753508173573,0.42,3753.3,3753.2,6.37545089]
[1753508173874,0.8877,3753.3,3753.2,6.37545089]
[1753508174644,0.4697,3753.3,3753.2,6.37545089]
[1753508175074,0.4697,3753.3,3753.2,6.50905089]
[1753508175271,0.4697,3753.3,3753.2,4.09105089]
[1753508175477,0.4697,3753.3,3753.2,6.50905089]
[1753508178452,0.002,3753.3,3753.2,6.50905089]
[1753508180662,0.002,3753.3,3753.2,6.97185089]
[1753508181784,0.002,3753.3,3753.2,7.44445089]
[1753508182987,0.002,3753.3,3753.2,7.64279832]
[1753508183790,0.002,3753.3,3753.2,7.17019832]
[1753508184788,0.002,3753.3,3753.2,6.70739832]
[1753508185755,0.452,3753.3,3753.2,6.70739832]
[1753508185954,0.452,3753.3,3753.2,4.28939832]
[1753508186267,0.452,3753.3,3753.2,6.70739832]
[1753508186665,0.452,3753.3,3753.2,4.28939832]
[1753508186865,0.452,3753.3,3753.2,6.70739832]
[1753508187387,1.6882,3753.3,3753.2,0.33194743]
[1753508187590,1.6882,3753.3,3753.2,5.41434048]
[1753508187773,1.6882,3753.3,3753.2,5.28074048]
[1753508188658,0.002,3753.3,3753.2,5.83074048]
[1753508188859,0.002,3753.3,3753.2,6.68293154]
[1753508189261,0.452,3753.3,3753.2,5.83074048]
[1753508193392,0.87,3753.3,3753.2,5.83074048]
[1753508193798,0.452,3753.3,3753.2,5.83074048]
[1753508196499,1.2116,3753.3,3753.2,2.61634743]
[1753508196662,1.6296,3753.3,3753.2,2.61634743]
[1753508196867,1.6296,3753.3,3753.2,5.28074048]
[1753508197682,1.6296,3753.3,3753.2,5.41434048]
[1753508198166,1.6296,3753.3,3753.2,2.74994743]
[1753508198376,1.6296,3753.3,3753.2,5.41434048]
[1753508198600,1.6296,3753.3,3753.2,2.74994743]
[1753508198782,0.7616,3753.3,3753.2,5.41434048]
[1753508200912,0.002,3753.3,3753.2,5.41434048]
[1753508201066,0.002,3753.3,3753.2,6.42714048]
[1753508201388,0.002,3753.3,3753.2,12.02011386]
[1753508202675,0.002,3753.3,3753.2,15.02011386]
[1753508203006,0.002,3753.3,3753.2,10.80392856]
[1753508205180,0.002,3753.5,3753.4,3.21425107]
[1753508205406,0.002,3753.5,3753.4,7.52996756]
[1753508205706,0.002,3753.5,3753.4,8.59896756]
[1753508208598,0.002,3753.5,3753.4,7.66356756]
[1753508210208,0.002,3753.5,3753.4,8.14776756]
[1753508210620,0.002,3753.5,3753.4,8.61586756]
[1753508221618,0.002,3753.5,3753.4,8.14776756]
[1753508222006,2.79621877,3754.6,3753.8,2.66392332]
[1753508222007,0.1328,3754.6,3753.8,2.66392332]
[1753508222209,2.79624925,3754.6,3753.9,2.417]
[1753508222409,0.27962492,3754.5,3754.0,0.1328]
[1753508222718,0.27962492,3754.5,3754.1,2.417]
[1753508223492,0.002,3754.3,3754.1,2.417]
[1753508225220,0.8308,3754.2,3754.1,2.417]
[1753508228622,0.002,3754.3,3754.2,2.66368334]
[1753508228826,0.002,3754.3,3754.2,3.13178334]
[1753508229023,0.002,3754.3,3754.2,4.11247962]
[1753508230142,0.002,3754.3,3754.2,4.08584279]
[1753508231426,0.002,3754.3,3754.2,4.11247962]
[1753508231624,0.002,3754.3,3754.2,4.66247962]
[1753508231842,0.002,3754.3,3754.2,4.63584279]
[1753508234337,0.002,3754.3,3754.2,4.08584279]
[1753508234512,0.002,3754.3,3754.2,3.26458334]
[1753508237544,0.002,3754.3,3754.2,3.81458334]
[1753508237745,0.002,3754.3,3754.2,4.32542017]
[1753508237944,0.002,3754.3,3754.2,4.29878334]
[1753508238322,0.002,3754.3,3754.2,3.81458334]
[1753508238523,0.002,3754.3,3754.2,4.70412394]
[1753508239160,0.002,3754.3,3754.2,5.20332394]
[1753508239952,0.7978,3754.8,3754.5,3.16145348]
[1753508240153,0.7978,3754.8,3754.6,2.416]
[1753508240352,0.7978,3754.8,3754.7,0.1328]
[1753508241844,0.7978,3754.8,3754.7,5.21212862]
[1753508242041,0.9363,3755.4,3754.7,6.51458833]
[1753508242242,0.9363,3755.4,3754.7,5.67722862]
[1753508242627,0.9363,3755.4,3754.8,2.66324487]
[1753508242828,0.9363,3755.4,3754.9,2.416]
[1753508243345,3.47160862,3755.3,3754.9,2.416]
[1753508243853,0.8087,3755.3,3754.9,2.416]
[1753508244169,0.8087,3755.3,3754.9,2.8811]
[1753508244761,0.8087,3755.3,3754.9,2.416]
[1753508244968,0.8087,3755.3,3755.0,0.4651]
[1753508245127,0.8087,3755.3,3755.1,2.416]
[1753508245526,0.8087,3755.3,3755.1,2.8811]
[1753508246785,0.8087,3755.3,3755.2,0.1328]
[1753508247344,0.8087,3755.3,3755.2,0.5979]
[1753508248276,0.7723,3755.6,3755.2,0.1328]
[1753508248478,0.7723,3755.6,3755.3,2.416]
[1753508250648,0.002,3755.8,3755.4,1.403]
[1753508250843,0.002,3755.8,3755.7,0.1328]
[1753508251068,0.002,3755.8,3755.7,2.5488]
[1753508251268,0.002,3755.8,3755.7,3.0139]
[1753508252862,0.002,3755.8,3755.7,5.67651948]
[1753508253094,0.002,3755.8,3755.7,7.05956415]
[1753508253273,0.002,3755.8,3755.7,6.56036415]
[1753508254192,0.002,3755.8,3755.7,4.64356415]
[1753508254397,0.002,3755.8,3755.7,5.96406415]
[1753508254594,0.002,3755.8,3755.7,3.89774467]
[1753508254898,0.002,3755.8,3755.7,3.0139]
[1753508255395,0.002,3755.8,3755.7,3.26051948]
[1753508255599,0.002,3755.8,3755.7,5.67651948]
[1753508255891,0.002,3755.8,3755.7,6.17571948]
[1753508257297,0.002,3755.8,3755.7,6.72571948]
[1753508257469,0.002,3755.8,3755.7,8.43506543]
[1753508259918,0.002,3755.8,3755.7,12.65125073]
[1753508260068,0.002,3755.8,3755.7,15.65125073]
[1753508263217,2.66150596,3757.3,3756.5,2.66199907]
[1753508263417,0.7622,3757.0,3756.9,0.1328]
[1753508263618,0.7622,3757.0,3756.9,2.415]
[1753508263799,0.8768,3757.0,3756.9,2.415]
[1753508264127,3.53850088,3757.0,3756.9,2.415]
[1753508264418,3.53849816,3757.0,3756.9,2.415]
[1753508264586,4.1584981,3757.0,3756.7,0.1328]
[1753508264782,0.1146,3756.9,3756.8,2.415]
[1753508264982,2.77636901,3756.9,3756.8,2.415]
[1753508265223,0.1146,3756.9,3756.8,2.415]
[1753508265824,3.42403986,3756.8,3756.7,0.1328]
[1753508265998,4.22742677,3756.8,3756.7,2.415]
[1753508266325,4.34202677,3756.8,3756.7,2.415]
[1753508266623,4.34202677,3756.8,3756.2,0.1328]
[1753508266794,2.66206717,3756.5,3756.3,2.415]
[1753508266994,0.1146,3756.4,3756.3,2.415]
[1753508267423,2.66226501,3756.3,3756.1,0.1328]
[1753508267600,0.783,3756.2,3756.0,0.498]
[1753508267801,3.55986505,3756.2,3756.1,2.415]
[1753508268493,2.66233593,3756.1,3756.0,0.498]
[1753508268689,2.77693593,3756.1,3756.0,2.913]
[1753508268896,3.46816614,3756.1,3756.0,2.913]
[1753508269317,3.46816614,3756.1,3756.0,0.498]
[1753508269525,3.46816614,3756.1,3756.0,2.913]
[1753508270033,3.46816614,3756.1,3756.0,0.498]
[1753508271109,0.69123021,3756.1,3756.0,0.498]
[1753508271450,7.80742123,3756.1,3756.0,0.498]
[1753508271654,7.94022123,3756.1,3756.0,0.498]
[1753508272020,3.72403593,3756.1,3756.0,0.498]
[1753508280537,3.60943593,3756.1,3756.0,0.498]
[1753508281360,3.72403593,3756.1,3756.0,0.498]
[1753508284661,2.66299023,3755.2,3754.7,0.7857]
[1753508284860,2.66299023,3755.2,3754.8,0.9518]
[1753508285176,0.1328,3755.1,3754.9,0.9518]
[1753508285478,0.1328,3755.1,3755.0,0.478]
[1753508285681,0.1328,3755.1,3755.0,0.9518]
[1753508286342,2.66277069,3755.5,3755.0,0.9518]
[1753508286544,0.1328,3755.3,3755.1,0.9518]
[1753508286740,2.416,3755.8,3755.2,0.9518]
[1753508286979,0.1328,3755.6,3755.3,0.9518]
[1753508287282,0.1328,3755.6,3755.4,0.9518]
[1753508287463,0.1328,3755.6,3755.5,0.9518]
[1753508288841,0.1328,3755.6,3755.5,1.7325]
[1753508289047,0.7612,3756.1,3755.5,1.7325]
[1753508289048,0.1328,3755.7,3755.5,1.7325]
[1753508289389,0.1328,3755.7,3755.6,0.9518]
[1753508289877,0.1328,3755.7,3755.5,0.7807]
[1753508290052,0.1328,3755.7,3755.6,0.9518]
[1753508292594,0.1328,3756.1,3755.6,3.61449038]
[1753508292767,0.1328,3756.1,3755.7,0.9518]
[1753508293191,0.1328,3756.1,3755.5,3.57625579]
[1753508293366,0.002,3756.6,3755.9,2.66247723]
[1753508293561,0.1328,3756.4,3755.9,0.1328]
[1753508293774,0.1328,3756.4,3756.0,0.9518]
[1753508293974,0.1328,3756.4,3755.9,0.1328]
[1753508294190,0.1328,3756.4,3756.1,0.9518]
[1753508294400,0.1328,3756.4,3756.2,0.9518]
[1753508294600,0.1328,3756.4,3755.9,0.1328]
[1753508294874,0.1328,3756.4,3756.3,0.9518]
[1753508297239,2.7949233,3756.4,3756.3,0.9518]
[1753508304046,0.1328,3756.4,3756.3,0.9518]
[1753508304348,2.7949233,3756.4,3756.3,0.9518]
[1753508304848,0.1328,3756.4,3756.3,0.9518]
[1753508305648,2.7949233,3756.4,3756.3,0.9518]
[1753508306447,0.1328,3756.4,3756.3,0.9518]
[1753508309942,2.7949233,3756.4,3756.3,0.9518]
[1753508310139,0.1328,3756.4,3756.3,0.9518]
[1753508310339,2.7949233,3756.4,3756.3,0.9518]
[1753508310557,0.1328,3756.4,3756.3,0.9518]
[1753508311077,2.7949233,3756.4,3756.3,0.9518]
[1753508311221,0.1328,3756.4,3756.3,0.9518]
[1753508311820,2.7969233,3756.4,3756.3,0.9518]
[1753508312157,0.1348,3756.4,3756.3,0.9518]
[1753508312653,2.7969233,3756.4,3756.3,0.9518]
[1753508320129,0.1348,3756.4,3756.3,0.9518]
[1753508320791,2.7969233,3756.4,3756.3,0.9518]
[1753508320965,0.1348,3756.4,3756.3,0.9518]
[1753508322676,2.7969233,3756.4,3756.3,0.9518]
[1753508323636,3.34281485,3756.4,3756.3,0.9518]
[1753508325791,0.1348,3756.4,3756.3,0.9518]
[1753508327470,2.6641233,3756.4,3756.3,0.9518]
[1753508327773,0.002,3756.4,3756.3,0.9518]
[1753508329880,0.002,3756.4,3756.3,1.7845]
[1753508336444,0.002,3756.4,3756.3,0.9518]
[1753508337395,0.002,3756.4,3756.1,0.8919]
[1753508337396,2.66226505,3756.2,3756.1,0.1328]
[1753508337599,3.15223156,3756.2,3756.0,0.001]
[1753508337945,0.48996651,3756.2,3756.1,0.9547]
[1753508338150,0.1328,3756.2,3756.1,0.9547]
[1753508338544,0.1328,3756.3,3756.1,0.9547]
[1753508338787,0.1328,3756.3,3756.2,0.9547]
[1753508339352,0.002,3756.4,3756.2,0.9547]
[1753508339684,0.002,3756.4,3756.3,0.9547]
[1753508339977,0.002,3756.4,3756.2,0.4906]
[1753508340177,0.002,3756.4,3756.2,0.9547]
[1753508340543,0.002,3756.4,3756.3,0.9547]
[1753508343275,0.002,3756.4,3756.3,1.7659]
[1753508343904,0.002,3756.4,3756.3,5.12579056]
[1753508344052,0.002,3756.4,3756.3,5.25859056]
[1753508344450,0.002,3756.4,3756.3,0.9547]
[1753508345859,0.002,3756.4,3756.1,0.1328]
[1753508346062,0.002,3756.4,3756.2,2.9056]
[1753508346871,0.002,3756.4,3756.1,0.1328]
[1753508346872,0.002,3756.4,3756.1,2.415]
[1753508347080,0.1328,3756.2,3756.1,2.415]
[1753508348792,0.1328,3756.2,3756.1,3.3697]
[1753508349478,2.79506505,3756.2,3756.1,2.415]
[1753508349878,2.79506505,3756.2,3756.1,3.3697]
[1753508350482,0.1328,3756.2,3756.1,3.3697]
[1753508350871,2.79506505,3756.2,3756.1,3.3697]
[1753508351289,2.66233593,3756.1,3756.0,0.001]
[1753508351488,2.66233593,3756.1,3756.0,2.417]
[1753508352694,3.41743593,3756.1,3756.0,0.001]
[1753508358007,3.53203593,3756.1,3756.0,0.001]
[1753508358201,4.11248228,3756.1,3756.0,0.001]
[1753508359557,3.47198228,3756.1,3756.0,0.001]
[1753508359736,4.48840463,3756.1,3756.0,0.001]
[1753508361578,4.23898228,3756.1,3756.0,0.001]
[1753508362685,4.48827654,3756.1,3756.0,0.001]
[1753508362831,4.23898228,3756.1,3756.0,0.001]
[1753508363037,7.23898228,3756.1,3756.0,0.001]
[1753508363536,7.12438228,3756.1,3756.0,0.001]
[1753508365774,9.53938228,3756.1,3756.0,0.001]
[1753508368600,9.78855861,3756.1,3756.0,0.001]
[1753508369296,9.92941299,3756.1,3756.0,0.001]
[1753508369897,9.78855861,3756.1,3756.0,0.001]
[1753508370060,9.53938228,3756.1,3756.0,0.9649]
[1753508370259,9.53938228,3756.1,3756.0,0.001]
[1753508371042,9.53938228,3756.1,3756.0,0.9649]
[1753508371557,9.7885258,3756.1,3756.0,0.9649]
[1753508371911,2.66233593,3756.1,3756.0,0.9649]
[1753508372260,0.38192988,3756.2,3756.0,0.9649]
[1753508372602,0.38192988,3756.2,3756.1,0.9639]
[1753508372603,2.79507464,3756.2,3756.1,0.9639]
[1753508373163,0.1328,3756.2,3756.1,0.9639]
[1753508373760,2.79506505,3756.2,3756.1,0.9639]
[1753508377177,3.04421156,3756.2,3756.1,0.9639]
[1753508377598,2.79506505,3756.2,3756.1,0.9639]
[1753508377800,0.1328,3756.2,3756.1,0.9639]
[1753508378202,0.38207788,3756.2,3756.1,0.9639]
[1753508378522,0.38408371,3756.2,3756.1,0.9639]
[1753508378717,0.1348,3756.2,3756.1,0.9639]
[1753508378884,2.79706505,3756.2,3756.1,0.9639]
[1753508379416,3.18728683,3756.2,3756.1,0.9639]
[1753508382320,0.002,3756.2,3756.1,1.7746]
[1753508388930,0.002,3756.2,3756.0,0.001]
[1753508389108,0.002,3756.2,3756.1,0.9519]
[1753508389302,0.002,3756.2,3756.1,0.4685]
[1753508389490,0.002,3756.2,3756.1,0.9519]
[1753508389914,2.66426505,3756.2,3756.1,0.9519]
[1753508390117,2.79706505,3756.2,3756.1,0.9519]
[1753508390354,0.1348,3756.2,3756.1,0.9519]
[1753508390666,0.1348,3756.2,3756.1,1.754]
[1753508390868,0.002,3756.2,3756.1,2.171]
[1753508391074,0.002,3756.2,3756.1,1.754]
[1753508396655,0.002,3756.2,3756.1,4.41633593]
[1753508396959,0.002,3756.2,3756.1,1.754]
[1753508397946,0.002,3756.2,3756.1,4.41633593]
[1753508398152,0.002,3756.2,3756.1,5.37910426]
[1753508399869,0.002,3756.2,3756.1,2.71676833]
[1753508400737,0.002,3756.2,3756.1,4.169]
[1753508403284,0.002,3756.2,3756.1,3.3669]
[1753508407348,0.002,3756.2,3756.1,0.4834]
[1753508407591,0.002,3756.2,3756.1,2.8984]
[1753508408696,0.002,3756.2,3756.1,3.3669]
[1753508418608,0.002,3756.2,3756.1,0.9519]
[1753508418903,0.002,3756.2,3756.1,6.02923593]